bitfinex/quotes_ETHUSD_20251012
["timestamp","ask_amount","ask_price","bid_price","bid_amount"]
[1760293775171,2.0408,4130.3,4129.6,2.54234031]
[1760293775375,2.0408,4130.3,4129.6,0.1208]
[1760293775606,9.736734,4130.2,4129.6,0.1208]
[1760293775807,0.7544,4130.0,4129.3,2.54247379]
[1760293776114,0.7544,4130.0,4129.5,2.42158719]
[1760293776900,0.7544,4130.0,4129.4,2.42160465]
[1760293777077,0.7544,4130.0,4129.3,3.00907631]
[1760293777277,0.7544,4130.0,4129.4,2.42165215]
[1760293777586,0.7544,4130.0,4129.5,2.42158586]
[1760293777779,0.7544,4130.0,4129.4,2.42165191]
[1760293777994,0.7544,4130.0,4129.5,2.42159206]
[1760293778178,0.7544,4130.0,4129.6,2.42153853]
[1760293778383,0.7544,4130.0,4129.5,2.42159163]
[1760293778578,0.7544,4130.0,4129.4,2.42161148]
[1760293778783,0.7544,4130.0,4129.5,2.42159509]
[1760293779008,0.7544,4130.0,4129.5,2.88819509]
[1760293779232,0.7544,4130.0,4129.5,2.42159509]
[1760293779600,0.7544,4130.0,4129.6,2.42152511]
[1760293780013,0.7544,4130.0,4129.3,2.54451692]
[1760293780014,1.1998,4130.0,4129.4,2.42161109]
[1760293780819,1.1998,4130.0,4129.5,2.42159678]
[1760293781125,0.7544,4130.0,4129.4,2.42164948]
[1760293781704,0.7544,4130.0,4129.5,3.18929634]
[1760293781903,0.7544,4130.0,4129.8,2.42142433]
[1760293782105,1.921,4130.4,4129.9,0.4666]
[1760293782106,0.1218,4130.4,4129.9,0.4666]
[1760293782305,0.1218,4130.4,4130.0,2.88784954]
[1760293782605,0.1218,4130.4,4130.1,0.4666]
[1760293782822,0.1218,4130.4,4130.0,2.42129167]
[1760293783012,0.1218,4130.4,4130.1,2.42123048]
[1760293783524,0.1218,4130.4,4130.3,2.42113163]
[1760293784098,0.1218,4130.4,4129.7,0.1208]
[1760293784099,0.1218,4130.4,4130.2,2.42115666]
[1760293784300,0.1218,4130.4,4129.7,0.1208]
[1760293784499,1.92,4130.1,4129.7,2.42146586]
[1760293784696,0.429,4130.1,4129.6,2.42154054]
[1760293785133,0.6336,4130.3,4129.6,2.42154054]
[1760293785316,0.6336,4130.3,4129.7,2.42147159]
[1760293786511,0.6336,4130.3,4129.3,0.002]
[1760293786512,0.6336,4130.3,4129.6,2.42152922]
[1760293786712,0.6336,4130.3,4129.3,2.42370687]
[1760293786925,3.05475224,4130.3,4129.6,2.4215257]
[1760293787331,0.6336,4130.3,4129.7,2.42146483]
[1760293787952,0.6336,4130.3,4129.8,2.42141425]
[1760293788243,0.4295,4130.2,4129.8,2.42141425]
[1760293788448,0.6336,4130.3,4129.8,2.42141425]
[1760293788644,0.4295,4130.2,4129.8,2.42141425]
[1760293789147,0.6336,4130.3,4129.8,2.42141425]
[1760293789328,0.4295,4130.1,4129.8,2.42141425]
[1760293789646,0.4295,4130.1,4129.9,2.4213633]
[1760293789845,0.001,4130.4,4129.9,0.48429031]
[1760293790048,0.001,4130.4,4130.3,2.42113163]
[1760293790348,0.001,4130.4,4130.3,2.85003163]
[1760293790933,0.001,4130.4,4130.3,2.42113163]
[1760293791453,0.001,4130.4,4130.3,2.85003163]
[1760293792045,0.001,4130.4,4130.3,2.94825541]
[1760293792212,0.001,4130.4,4128.4,0.002]
[1760293792213,0.001,4130.4,4128.5,1.92]
[1760293792416,0.001,4130.4,4130.1,2.4212482]
[1760293793147,0.6336,4130.2,4129.1,0.4289]
[1760293793747,2.5536,4130.2,4129.6,2.42152177]
[1760293793955,2.5536,4130.2,4128.4,2.42421397]
[1760293793956,1.92,4129.9,4128.4,2.85311397]
[1760293794260,0.6336,4129.6,4128.4,0.4309]
[1760293794438,13.06318832,4129.4,4128.7,2.42206873]
[1760293794759,2.7292,4129.4,4128.8,2.42400668]
[1760293794959,8.94285932,4129.4,4128.8,0.002]
[1760293796559,39.71995312,4129.4,4128.8,0.002]
[1760293796758,34.40554912,4129.4,4128.8,0.002]
[1760293797470,17.79441257,4128.9,4128.8,0.002]
[1760293797765,16.79441257,4128.9,4128.8,0.002]
[1760293798163,0.6336,4128.6,4128.4,0.002]
[1760293798456,2.5536,4128.5,4128.4,0.002]
[1760293798660,5.40278723,4128.5,4128.4,0.002]
[1760293798859,9.54520723,4128.5,4128.4,0.002]
[1760293800193,5.40278723,4128.5,4128.4,0.002]
[1760293800328,7.53001523,4128.5,4128.4,0.002]
[1760293800530,5.107828,4128.5,4128.4,0.002]
[1760293800767,7.53001523,4128.5,4128.4,0.002]
[1760293801130,7.53001523,4128.5,4127.8,0.002]
[1760293801131,12.547235,4128.2,4127.8,0.002]
[1760293801333,2.42265109,4127.8,4125.6,0.4289]
[1760293801550,0.1208,4126.5,4125.9,2.42370807]
[1760293801749,0.6336,4126.4,4125.8,0.1208]
[1760293802000,0.6336,4126.4,4125.9,2.42370325]
[1760293802183,0.6336,4126.4,4125.9,2.92054203]
[1760293802385,0.1208,4126.5,4126.3,2.42345902]
[1760293802781,0.1208,4126.5,4126.2,2.42352188]
[1760293802985,0.6541,4127.7,4126.4,0.2191]
[1760293803287,16.2613398,4127.5,4126.2,2.42348017]
[1760293803450,16.2613398,4127.5,4126.6,2.42326768]
[1760293803451,0.6336,4127.4,4126.6,2.42326768]
[1760293803645,0.6336,4127.4,4126.3,0.4847135]
[1760293803990,0.6336,4127.4,4126.6,2.42326505]
[1760293804291,3.05644199,4127.4,4126.7,2.42321393]
[1760293804456,0.6336,4127.4,4126.3,0.648]
[1760293804780,0.6336,4127.6,4127.0,2.42305871]
[1760293804991,3.47642393,4127.6,4126.8,2.42316892]
[1760293805153,3.74720871,4127.6,4126.8,2.42316892]
[1760293805550,1.32448478,4127.6,4126.7,2.42323606]
[1760293805782,1.32448478,4127.6,4126.3,0.2191]
[1760293805783,1.0537,4127.6,4127.0,2.42306403]
[1760293805987,0.6336,4127.8,4127.1,2.42300444]
[1760293806289,3.05621082,4127.8,4127.1,2.42300688]
[1760293806492,0.6336,4127.8,4127.2,2.42293589]
[1760293806654,0.6336,4127.8,4126.4,0.4289]
[1760293806983,0.2341,4128.2,4126.5,2.4233612]
[1760293807182,0.2341,4128.2,4127.6,2.42267852]
[1760293807490,0.2341,4128.2,4127.7,2.4226344]
[1760293807680,0.4201,4128.1,4127.0,2.85191246]
[1760293807987,0.4201,4128.1,4127.1,2.42300889]
[1760293807988,0.6336,4128.0,4127.1,2.42300889]
[1760293808354,0.6336,4128.0,4127.3,2.4228796]
[1760293808552,0.6336,4128.0,4127.4,2.42282227]
[1760293808786,13.278691,4127.9,4125.9,0.4289]
[1760293809011,0.6336,4127.6,4126.8,2.42315245]
[1760293809171,0.4201,4127.5,4126.8,2.42315245]
[1760293809379,0.6336,4127.4,4126.9,2.42312076]
[1760293809582,0.4201,4127.3,4126.6,2.42329443]
[1760293809783,0.6336,4127.2,4125.4,0.4319]
[1760293809995,0.6336,4127.4,4125.4,0.4319]
[1760293809996,0.6336,4127.0,4125.6,2.42388985]
[1760293810192,0.6336,4127.0,4126.7,2.42322649]
[1760293810487,0.6336,4127.0,4126.5,2.42332237]
[1760293810683,0.4201,4127.0,4126.3,2.42346606]
[1760293810885,0.4201,4127.0,4126.2,2.42351354]
[1760293810886,0.6336,4126.8,4126.2,2.42351354]
[1760293811102,0.6336,4126.8,4126.3,2.42346921]
[1760293811288,0.6336,4126.6,4126.1,2.42353882]
[1760293811492,0.6336,4126.6,4125.9,2.42371257]
[1760293811690,0.6336,4126.6,4125.6,2.42388985]
[1760293811884,0.6336,4126.6,4125.7,0.3141388]
[1760293812206,0.6336,4126.6,4125.4,0.003]
[1760293812382,0.6336,4126.0,4125.4,0.003]
[1760293812723,0.6336,4125.8,4125.4,0.003]
[1760293813094,0.1208,4125.6,4125.4,0.003]
[1760293813671,0.1208,4125.6,4125.5,2.42394861]
[1760293814890,0.6336,4126.5,4126.3,2.42343842]
[1760293815067,0.1208,4126.3,4125.5,0.91400068]
[1760293815271,0.7544,4126.3,4126.2,2.4235062]
[1760293817425,0.7544,4126.3,4125.6,0.1208]
[1760293817600,0.6336,4126.2,4125.4,0.003]
[1760293817801,0.1208,4125.9,4125.7,2.42382014]
[1760293817999,0.1208,4125.9,4125.6,2.42388006]
[1760293818205,0.1208,4125.9,4125.8,2.42377235]
[1760293818830,0.1208,4125.9,4125.8,2.88877235]
[1760293819141,0.2584,4126.9,4126.4,2.42340163]
[1760293819294,0.1208,4126.5,4126.3,2.42346808]
[1760293819496,0.3792,4126.5,4126.3,2.42346808]
[1760293819716,0.1208,4126.5,4126.4,2.42341993]
[1760293820039,0.3792,4126.5,4126.3,2.42343954]
[1760293820205,0.1208,4126.5,4126.4,2.42341993]
[1760293823422,1.92,4127.6,4127.0,2.42304804]
[1760293823595,0.1208,4127.0,4126.9,2.42311403]
[1760293824026,0.6336,4126.8,4126.3,0.1208]
[1760293824325,0.6336,4126.8,4125.4,0.468]
[1760293824326,0.6336,4126.2,4125.4,0.003]
[1760293824507,0.1208,4125.8,4125.5,2.42389472]
[1760293824709,0.1208,4125.8,4125.4,0.003]
[1760293824710,0.1208,4125.8,4125.6,2.42387885]
[1760293825026,0.1208,4125.8,4125.7,2.4238311]
[1760293825416,0.6336,4125.7,4125.4,0.003]
[1760293825733,0.8929,4125.7,4125.4,0.003]
[1760293826026,0.6336,4125.5,4125.4,0.003]
[1760293826600,0.2593,4125.5,4125.4,0.003]
[1760293827602,2.8129,4125.9,4125.4,0.003]
[1760293827796,0.8929,4125.9,4125.4,0.003]
[1760293828129,0.6336,4125.7,4125.4,0.003]
[1760293828434,2.5536,4125.5,4125.4,0.003]
[1760293828802,2.8129,4125.5,4125.4,0.003]
[1760293830138,2.8129,4125.5,4125.4,2.42700736]
[1760293830300,2.8129,4125.5,4125.4,0.003]
[1760293832070,2.5536,4125.5,4125.4,0.003]
[1760293832272,2.8129,4125.5,4125.4,0.003]
[1760293832770,1.92,4125.5,4125.4,2.42700736]
[1760293832930,1.92,4125.5,4125.4,2.9123201]
[1760293834055,0.1208,4125.7,4125.6,2.42388985]
[1760293837561,1.92,4126.9,4125.6,0.465]
[1760293837764,0.1208,4126.2,4126.0,2.42362753]
[1760293837935,0.1208,4126.2,4126.0,2.42360324]
[1760293838237,0.1208,4126.2,4125.9,2.42371361]
[1760293838442,0.1208,4126.2,4126.0,2.42365487]
[1760293838644,0.7544,4126.2,4126.1,2.42359613]
[1760293839264,0.2603,4127.8,4126.2,2.42353739]
[1760293839616,0.1208,4127.5,4127.4,2.42283277]
[1760293839910,0.001,4127.8,4127.7,2.42265668]
[1760293840271,0.001,4127.8,4127.7,2.88765668]
[1760293845596,0.001,4127.8,4127.7,2.42265668]
[1760293845772,0.001,4127.8,4127.7,2.88485668]
[1760293846282,0.001,4127.8,4127.7,3.41561583]
[1760293846902,0.001,4127.8,4127.7,2.42265668]
[1760293847911,0.001,4127.8,4127.7,2.85545668]
[1760293849715,0.001,4127.8,4127.7,2.97625668]
[1760293853617,1e-08,4128.7,4127.7,2.85545668]
[1760293853793,1e-08,4128.7,4128.6,2.64122856]
[1760293853999,1e-08,4128.7,4128.6,3.14757214]
[1760293854226,1e-08,4128.7,4128.6,3.58037214]
[1760293857361,1e-08,4128.7,4128.6,5.50037214]
[1760293857915,1e-08,4128.7,4128.6,6.13397214]
[1760293861749,0.001,4130.4,4128.9,0.6336]
[1760293861922,0.001,4130.4,4128.7,2.5536]
[1760293861923,0.001,4130.4,4130.3,2.63663163]
[1760293862324,0.001,4130.4,4130.3,3.06943163]
[1760293862650,0.001,4130.4,4130.3,3.04527451]
[1760293863721,0.001,4130.4,4130.3,3.16607451]
[1760293864129,0.001,4130.4,4130.3,3.72480276]
[1760293867668,0.001,4130.4,4130.3,2.85393163]
[1760293869560,1e-08,4131.3,4131.2,2.42060418]
[1760293869971,1e-08,4131.3,4131.2,2.85340418]
[1760293873848,1e-08,4131.3,4131.2,2.42060418]
[1760293874287,1e-08,4131.3,4131.2,2.85340418]
[1760293874982,1e-08,4131.3,4131.2,2.42060418]
[1760293875880,1e-08,4131.3,4131.2,2.85340418]
[1760293877575,1e-08,4131.3,4131.2,2.97420418]
[1760293877984,1e-08,4131.3,4131.2,3.51369486]
[1760293884591,1e-08,4132.3,4132.2,2.42001839]
[1760293884952,1e-08,4132.3,4132.2,2.88251839]
[1760293894523,1e-08,4132.3,4132.2,3.00331839]
[1760293896109,1e-08,4132.3,4132.2,2.88251839]
[1760293897438,1e-08,4132.3,4130.9,2.42073965]
[1760293897642,1e-08,4132.3,4132.2,2.42001839]
[1760293898257,1e-08,4132.3,4132.2,2.88251839]
[1760293898606,0.001,4132.7,4132.6,2.41978415]
[1760293899108,0.001,4132.7,4132.6,2.88228415]
[1760293901908,0.001,4132.7,4132.6,5.43588415]
[1760293902111,0.001,4132.7,4132.6,6.2214586]
[1760293902933,1.92,4135.3,4132.6,3.80167445]
[1760293902934,5.003068,4135.2,4132.6,3.80167445]
[1760293903139,1.92,4135.1,4134.0,2.41894088]
[1760293903314,2.5536,4135.3,4134.7,2.41855163]
[1760293903514,12.7143,4135.0,4134.4,2.16309586]
[1760293903715,0.4468,4134.9,4134.5,2.41864773]
[1760293903916,0.4468,4134.9,4133.6,0.4544]
[1760293903917,0.4468,4134.9,4134.4,2.41873065]
[1760293904238,0.4468,4134.9,4133.9,2.41897215]
[1760293904239,3.05216054,4134.7,4133.9,2.41897215]
[1760293904435,0.6336,4134.5,4133.4,0.6724]
[1760293904628,1.0804,4134.5,4133.9,2.41898115]
[1760293905642,1.0804,4134.5,4134.1,2.41889545]
[1760293905829,0.4468,4134.4,4134.1,2.41889545]
[1760293906033,0.1208,4134.3,4134.1,2.41889545]
[1760293906944,0.1208,4134.3,4134.0,2.41895331]
[1760293907309,0.1208,4134.3,4133.7,2.41913925]
[1760293907310,0.5676,4134.3,4133.9,2.41900584]
[1760293907845,0.70426,4134.2,4133.9,2.41900584]
[1760293908043,0.70426,4134.2,4133.8,2.4190704]
[1760293908242,0.70426,4134.2,4133.1,2.63567445]
[1760293908243,4.634288,4134.1,4132.5,0.2162]
[1760293908541,0.24876,4134.2,4133.7,2.41913081]
[1760293908733,0.6336,4134.5,4133.8,2.41907065]
[1760293909138,0.4523,4134.7,4133.8,2.41907065]
[1760293909139,0.6336,4134.6,4133.8,2.41907065]
[1760293909442,0.6336,4134.6,4133.7,2.41913937]
[1760293909607,0.6336,4134.6,4133.2,0.4456]
[1760293909812,0.6336,4134.6,4133.4,2.41931581]
[1760293910013,0.132258,4134.5,4134.1,2.41886455]
[1760293910209,0.6336,4134.4,4134.1,2.41886455]
[1760293910452,0.6336,4134.4,4131.9,0.4456]
[1760293910453,1.92,4134.2,4131.9,0.4456]
[1760293910640,2.5536,4133.9,4133.4,2.41926838]
[1760293910836,1.2409483,4133.8,4132.7,0.4456]
[1760293911037,0.5861,4133.8,4133.3,2.41935738]
[1760293911238,0.5861,4133.8,4132.2,0.2162]
[1760293911239,0.4606,4133.7,4132.2,0.2162]
[1760293911449,0.4606,4133.7,4132.3,0.4456]
[1760293911755,0.4606,4133.7,4133.3,2.419333]
[1760293911956,0.4606,4133.6,4133.3,2.419333]
[1760293912134,0.4606,4133.5,4133.3,2.419333]
[1760293912337,0.4606,4133.5,4133.4,2.41931581]
[1760293912654,0.6336,4134.1,4133.6,2.41919366]
[1760293912852,0.6336,4133.8,4133.4,2.41925961]
[1760293913020,0.4573,4133.7,4133.5,2.41920235]
[1760293913220,0.4573,4133.7,4132.9,2.4196085]
[1760293913657,0.4573,4133.7,4132.8,0.4456]
[1760293913968,0.4573,4133.7,4133.5,2.41921761]
[1760293914121,2.5536,4134.0,4133.4,2.4192702]
[1760293914323,0.6336,4133.8,4133.4,2.4192702]
[1760293914561,0.6336,4133.8,4133.5,2.41925381]
[1760293914963,0.4573,4133.7,4133.5,2.41925381]
[1760293915273,0.4573,4133.6,4133.3,2.41937058]
[1760293915561,0.4573,4133.5,4133.3,2.41937058]
[1760293915858,0.4573,4133.4,4133.3,2.41937058]
[1760293916070,0.6336,4133.8,4133.6,2.41919648]
[1760293916222,15.083954,4133.8,4133.7,2.41914023]
[1760293916423,2.5536,4133.8,4133.7,2.41914023]
[1760293916824,1.92,4133.8,4133.7,2.41914023]
[1760293917951,0.4606,4135.2,4133.7,0.4456]
[1760293918152,7.46076,4135.1,4134.6,2.4186024]
[1760293918363,0.1208,4134.7,4134.6,2.4186024]
[1760293918525,0.31582387,4135.8,4134.6,2.4186024]
[1760293918526,0.4606,4135.8,4134.8,2.41845612]
[1760293918725,0.1208,4135.5,4135.4,2.41814576]
[1760293918958,0.4606,4136.4,4135.7,2.41794029]
[1760293919155,0.1208,4135.9,4135.7,2.41794029]
[1760293919345,0.1208,4135.9,4135.3,2.41820424]
[1760293919533,0.7544,4135.9,4135.8,2.41791189]
[1760293919742,0.1208,4135.9,4135.8,2.41791189]
[1760293919927,0.4606,4136.4,4135.9,2.41783918]
[1760293920254,2.41731297,4136.9,4135.9,2.41783918]
[1760293920255,0.1218,4136.1,4135.9,2.41783918]
[1760293920968,0.1218,4136.1,4136.0,2.41779497]
[1760293921183,0.1218,4136.1,4135.9,2.41783896]
[1760293921720,0.1218,4136.1,4136.0,2.41779497]
[1760293921824,0.001,4136.1,4136.0,2.86339497]
[1760293923456,0.001,4136.1,4136.0,2.41779497]
[1760293923635,0.001,4136.1,4136.0,2.86339497]
[1760293923835,0.001,4136.1,4136.0,2.41779497]
[1760293924030,0.001,4136.1,4136.0,2.86339497]
[1760293926030,0.001,4136.1,4136.0,3.40360219]
[1760293931161,0.001,4136.1,4136.0,2.86339497]
[1760293931676,0.001,4136.1,4136.0,2.41779497]
[1760293932395,0.001,4136.1,4136.0,2.86339497]
[1760293934991,0.001,4136.1,4136.0,2.41779497]
[1760293936190,0.001,4136.1,4136.0,2.53859497]
[1760293936867,0.001,4136.1,4136.0,3.35904219]
[1760293937958,0.001,4136.1,4136.0,3.34734219]
[1760293938497,0.001,4136.1,4136.0,2.91344219]
[1760293938990,0.4402,4136.1,4134.7,2.85245515]
[1760293939162,0.001,4136.1,4134.8,0.4339]
[1760293939367,0.001,4136.1,4135.9,2.41780676]
[1760293939886,0.001,4136.1,4135.0,2.4183652]
[1760293940075,0.4392,4136.0,4135.8,2.41788186]
[1760293940279,0.4392,4136.0,4135.9,2.41785342]
[1760293940590,0.001,4136.1,4134.8,0.4339]
[1760293940799,0.4392,4136.0,4134.3,0.4339]
[1760293940980,0.4392,4136.0,4134.7,0.4339]
[1760293941308,0.4392,4136.0,4134.4,2.41872285]
[1760293941309,0.6336,4135.7,4134.4,2.41872285]
[1760293941608,0.6336,4134.6,4133.1,0.4339]
[1760293941898,1.92,4135.2,4132.3,2.41994552]
[1760293942065,1.46200296,4134.8,4133.7,2.41913506]
[1760293942265,1.02540296,4134.8,4132.8,2.41962373]
[1760293942466,1.02540296,4134.8,4131.9,15.61640123]
[1760293942467,0.6336,4135.0,4134.3,2.41873174]
[1760293942898,0.6336,4135.0,4133.8,0.4339]
[1760293942899,0.6336,4135.0,4134.4,2.41871685]
[1760293943082,2.5536,4134.9,4134.0,2.42092219]
[1760293943286,0.6336,4134.7,4134.0,0.002]
[1760293943657,0.6336,4134.9,4134.2,2.41879568]
[1760293943860,0.6336,4134.9,4134.4,2.41871976]
[1760293944196,0.6336,4135.0,4134.4,2.41871976]
[1760293944419,1.0702,4135.0,4134.2,2.41879021]
[1760293944587,0.6336,4134.8,4134.2,2.41879021]
[1760293944789,0.6042193,4134.7,4134.1,2.41890462]
[1760293945001,0.6336,4134.8,4134.4,2.41868437]
[1760293945422,0.6336,4135.0,4134.4,2.41868437]
[1760293945576,2.4180899,4135.5,4134.0,0.002]
[1760293945577,0.4366,4135.7,4134.9,2.41841488]
[1760293945917,1.92,4135.6,4134.9,2.41841488]
[1760293946102,0.6336,4135.5,4134.9,2.41841488]
[1760293946301,0.6336,4135.3,4134.9,2.41841488]
[1760293946497,0.6336,4135.3,4134.8,2.41848896]
[1760293946701,1.191,4135.3,4134.8,2.41848896]
[1760293947016,1.191,4135.3,4134.6,2.53936602]
[1760293947219,0.6336,4135.1,4134.6,2.53936602]
[1760293947421,0.6336,4134.3,4134.0,0.002]
[1760293947578,0.1208,4134.8,4134.1,0.1208]
[1760293947781,0.91123055,4135.9,4134.1,0.1208]
[1760293948015,0.001,4136.1,4136.0,2.41779497]
[1760293948342,0.001,4136.1,4135.1,0.4339]
[1760293948503,0.001,4136.1,4135.9,2.41780952]
[1760293948704,0.001,4136.1,4135.1,0.4339]
[1760293949242,0.001,4136.1,4135.6,2.41797377]
[1760293949405,0.001,4136.1,4135.8,2.41790721]
[1760293949606,0.29987,4136.1,4135.6,2.41798339]
[1760293949835,0.001,4136.1,4135.1,0.4339]
[1760293950144,0.001,4136.1,4135.8,2.41786528]
[1760293950730,0.001,4136.1,4135.9,2.41780955]
[1760293951468,0.001,4136.1,4135.8,0.4418]
[1760293951469,0.001,4136.1,4136.0,2.41779497]
[1760293951623,1.92,4136.0,4134.9,2.8602226]
[1760293951820,0.001,4136.1,4135.0,0.72782226]
[1760293952024,0.001,4136.1,4135.8,2.41786753]
[1760293953169,0.001,4136.1,4135.7,2.41795427]
[1760293953465,0.001,4136.1,4135.8,2.4179044]
[1760293954549,0.001,4136.1,4135.3,0.4418]
[1760293954869,0.001,4136.1,4135.7,2.41794184]
[1760293955054,0.001,4136.1,4135.8,2.417911]
[1760293956069,0.001,4136.1,4135.9,2.41783826]
[1760293956462,0.001,4136.1,4135.7,2.41795872]
[1760293956665,0.001,4136.1,4136.0,2.41779497]
[1760293957854,0.001,4136.1,4135.8,2.4179]
[1760293957855,0.001,4136.1,4135.8,2.41787039]
[1760293958059,0.4351,4136.1,4135.7,2.4179261]
[1760293958254,0.98781023,4136.1,4135.7,2.4179261]
[1760293958474,0.98781023,4136.1,4126.6,8.68759634]
[1760293958475,0.6336,4135.6,4134.4,0.4418]
[1760293958645,0.6336,4135.6,4135.1,2.41830152]
[1760293958844,0.6336,4135.6,4134.5,2.42065758]
[1760293958845,0.6336,4135.9,4135.3,2.41820321]
[1760293959159,0.6336,4135.5,4134.9,2.41843817]
[1760293959883,0.6336,4135.6,4134.9,2.41843817]
[1760293960089,0.6336,4135.4,4134.9,2.41843817]
[1760293960290,0.4293,4135.3,4134.9,2.41843817]
[1760293960895,0.4293,4135.2,4134.9,2.41843817]
[1760293961050,0.4293,4135.1,4134.5,0.002]
[1760293961482,0.6336,4134.9,4134.5,0.002]
[1760293961685,3.59217572,4134.9,4134.5,0.002]
[1760293961888,0.6336,4134.7,4134.5,0.002]
[1760293962385,0.4293,4134.8,4134.5,0.002]
[1760293962386,0.4293,4134.6,4134.5,0.002]
[1760293962547,0.6336,4134.8,4134.5,0.002]
[1760293962748,0.6336,4135.2,4134.6,2.41859157]
[1760293962954,0.6336,4135.0,4134.5,0.002]
[1760293963176,2.5536,4134.7,4134.5,0.002]
[1760293963570,3.05216901,4134.7,4134.5,0.002]
[1760293963750,2.9829,4134.6,4134.5,0.002]
[1760293964477,3.48151365,4134.6,4134.5,0.002]
[1760293964676,5.88518679,4134.6,4134.5,0.002]
[1760293964879,3.46657314,4134.6,4134.5,0.002]
[1760293965178,13.85525979,4134.6,4134.5,0.002]
[1760293965358,3.03727314,4134.6,4134.5,0.002]
[1760293965547,2.5536,4134.6,4134.5,0.002]
[1760293965951,2.5536,4134.6,4134.5,2.42067214]
[1760293966590,1.92,4134.6,4134.5,2.42067214]
[1760293966842,0.4293,4135.5,4134.8,2.41845617]
[1760293967011,0.6336,4135.4,4134.9,2.41840511]
[1760293967155,1.0629,4135.4,4134.9,2.41840511]
[1760293967978,0.6336,4135.2,4134.9,2.41840511]
[1760293968164,0.6336,4135.2,4134.5,0.002]
[1760293968165,0.6336,4135.2,4135.0,2.41837446]
[1760293968351,0.1208,4135.3,4135.0,2.41834781]
[1760293968557,0.6336,4135.2,4134.6,0.1208]
[1760293968986,0.6336,4135.2,4134.7,4.83705444]
[1760293969157,0.6336,4135.2,4134.7,2.41849929]
[1760293969361,0.6336,4135.2,4134.8,2.4184466]
[1760293969573,0.6336,4135.2,4134.6,0.1208]
[1760293970184,0.6336,4135.2,4135.1,2.4183212]
[1760293970358,0.6336,4135.2,4134.9,2.41843817]
[1760293970985,1.0629,4135.2,4134.9,2.41843817]
[1760293971483,2.41815787,4135.4,4134.5,0.002]
[1760293971690,0.6336,4135.0,4134.5,0.002]
[1760293971981,0.6336,4135.0,4134.8,2.41848866]
[1760293973211,0.6336,4135.0,4134.8,2.42048866]
[1760293973918,0.6336,4135.0,4134.9,2.41843817]
[1760293974278,0.6336,4135.0,4134.8,0.002]
[1760293974515,0.6336,4135.0,4134.8,2.42049243]
[1760293974809,0.6336,4135.0,4134.8,0.002]
[1760293975198,0.6336,4135.0,4134.9,2.41843817]
[1760293976280,0.1208,4135.1,4135.0,2.41837968]
[1760293976485,0.1208,4135.3,4134.8,0.002]
[1760293976813,0.6336,4134.9,4134.8,0.002]
[1760293976989,0.1208,4135.2,4134.9,2.41843817]
[1760293977313,0.7544,4135.2,4135.1,2.4183212]
[1760293978796,0.7544,4135.2,4135.0,2.41836188]
[1760293979121,0.7544,4135.2,4134.9,2.41842449]
[1760293979323,1.1837,4135.2,4134.9,2.41842449]
[1760293979696,0.7544,4135.2,4134.9,2.41842449]
[1760293979891,0.7544,4135.2,4135.0,2.4183749]
[1760293980507,0.7544,4135.2,4134.9,2.41843817]
[1760293980919,0.7544,4135.2,4135.1,2.4183212]
[1760293982127,0.001,4136.1,4135.6,2.41797783]
[1760293982431,0.1208,4135.9,4135.2,0.1208]
[1760293982803,0.6336,4135.8,4135.7,2.41791683]
[1760293983008,0.6336,4135.8,4135.2,0.1208]
[1760293983206,0.6336,4135.6,4134.8,0.002]
[1760293983408,0.1208,4135.4,4135.1,2.41827958]
[1760293983812,0.1208,4135.4,4134.9,2.41838023]
[1760293984013,0.3904,4135.3,4134.8,2.42048791]
[1760293984340,0.3904,4135.2,4134.9,2.41842485]
[1760293984538,0.6336,4134.9,4134.8,0.002]
[1760293984755,6.51494,4134.9,4134.8,0.002]
[1760293985049,9.32377817,4134.9,4134.8,0.002]
[1760293985222,5.522719,4134.9,4134.8,0.002]
[1760293985427,1.92,4134.9,4134.8,0.002]
[1760293985850,1.92,4134.9,4134.8,2.42049666]
[1760293986628,2.3104,4136.3,4135.5,2.41808002]
[1760293986852,2.3104,4136.3,4134.8,0.4411]
[1760293986853,0.1208,4135.7,4134.9,2.85753817]
[1760293987062,0.1208,4135.7,4135.4,2.4181094]
[1760293987447,0.1208,4135.7,4135.5,2.41808144]
[1760293987645,0.1208,4135.7,4135.4,2.41813245]
[1760293987879,0.6336,4135.6,4135.2,0.1208]
[1760293988166,1.024,4135.6,4135.3,2.41818419]
[1760293988770,0.6336,4135.6,4135.4,2.41813617]
[1760293989254,0.6336,4135.6,4135.3,2.41819066]
[1760293990529,0.6336,4135.6,4134.8,0.002]
[1760293990530,2.5536,4135.1,4134.8,0.002]
[1760293990729,0.6336,4135.1,4134.8,0.002]
[1760293990930,14.85651117,4134.9,4134.8,0.002]
[1760293991532,15.24691117,4134.9,4134.8,0.002]
[1760293991731,16.70354417,4134.9,4134.8,0.002]
[1760293992538,16.08358017,4134.9,4134.8,0.002]
[1760293992737,5.36243817,4134.9,4134.8,0.002]
[1760293992938,18.08358017,4134.9,4134.8,0.002]
[1760293993840,21.29761417,4134.9,4134.8,0.002]
[1760293994862,5.36243817,4134.9,4134.8,0.002]
[1760293995073,35.36243817,4134.9,4134.8,0.002]
[1760293995568,12.46263617,4134.9,4134.8,0.002]
[1760293995935,35.36243817,4134.9,4134.8,0.002]
[1760293997664,9.60976417,4134.9,4134.8,0.002]
[1760293997975,18.03784517,4134.9,4134.8,0.002]
[1760293998183,18.23083917,4134.9,4134.8,0.002]
[1760293998940,35.36243817,4134.9,4134.8,0.002]
[1760294000355,16.51750117,4134.9,4134.8,0.002]
[1760294001005,21.42294817,4134.9,4134.8,0.002]
[1760294001311,20.77332017,4134.9,4134.8,0.002]
[1760294001694,20.87035608,4134.9,4134.8,0.002]
[1760294002193,35.45947408,4134.9,4134.8,0.002]
[1760294002404,13.04606008,4134.9,4134.8,0.002]